Cogmind - Beta 16 @@@ ROGUE MODE // 2025.10.29 @ 15:05:19 // Winter2019/RPGLIKE Player: Red_Zig Result: Destroyed by D-53 Grenadier with Mini Grenade Launcher Performance ------------- Evolutions (0) 0 Regions Visited (2) 400 Robots Destroyed (26) 130 Value Destroyed (569) 569 Prototype IDs (0) 0 Alien Tech Used (0) 0 Bonus (0) 0 TOTAL SCORE: 1099 Bonus ------- None Cogmind --------- Core Integrity 0/750 Matter 300/300 Energy 300/300 System Corruption 0% Temperature Cool (0) Movement Walking (120) Location -10/Mines Parts ------- > --- POWER (1) -------- Ion Engine > --- PROPULSION (2) --- Aluminum Leg Aluminum Leg > --- UTILITY (2) ------ Improved Terrain Scanner > --- WEAPON (4) ------- Beam Rifle Beam Rifle Beam Rifle Beam Rifle > --- INVENTORY (1) ---- Shield Generator Peak State ------------ > --- POWER ------------ Ion Engine > --- PROPULSION ------- Aluminum Leg Aluminum Leg > --- UTILITY ---------- Improved Terrain Scanner Shield Generator > --- WEAPON ----------- Beam Rifle Beam Rifle Beam Rifle Beam Rifle > --- INVENTORY -------- (None) [Rating: 16] Favorites ----------- Power Ion Engine Engine Ion Engine Propulsion Aluminum Leg Leg Aluminum Leg Utility Improved Terrain Scanner Device Improved Terrain Scanner Weapon Beam Rifle Energy Gun Beam Rifle Ballistic Gun Light Assault Rifle Ballistic Cannon Improved Light Cannon Build | -11 -10 -10 ------- Run | Yrd Mat Min Slots Evolved 5 | 3 1 1 Power . | . . . Propulsion 1 | 1 . . Utility 1 | 1 . . Weapon 3 | 1 1 1 Parts Attached 14 | 6 7 1 Power 1 | 1 . . Engine 1 | 1 . . Core . | . . . Reactor . | . . . Propulsion 2 | 2 . . Treads . | . . . Leg 2 | 2 . . Wheel . | . . . Hover . | . . . Flight . | . . . Utility 3 | 1 2 . Device 3 | 1 2 . Storage . | . . . Processor . | . . . Hackware . | . . . Protection . | . . . Artifact . | . . . Weapon 8 | 2 5 1 Energy Gun 5 | 1 3 1 Energy Cannon . | . . . Ballistic Gun 1 | 1 . . Ballistic Cannon 2 | . 2 . Launcher . | . . . Special Weapon . | . . . Impact Weapon . | . . . Slashing Weapon . | . . . Piercing Weapon . | . . . Special Melee Weapon . | . . . Unidentified Prototypes . | . . . Parts Lost . | . . . Power . | . . . Propulsion . | . . . Utility . | . . . Weapon . | . . . Highest Loss Streak . | . . . To Critical Strikes . | . . . Average Backups . | . . . Power . | . . . Propulsion . | . . . Utility . | . . . Weapon . | . . . Tool/Special . | . . . Unused Backups . | . . . Power . | . . . Propulsion . | . . . Utility . | . . . Weapon . | . . . Tool/Special . | . . . Average Slot Usage (%) 95 | . 95 93 Engine 12 | . 12 11 Leg 26 | . 26 22 Device 23 | . 23 16 Energy Gun 29 | . 29 42 Ballistic Cannon 2 | . 2 . Peak Build Rating 16 | 8 14 16 Average Rating 11 | 5 11 14 On Entrance 7 | . 8 14 Avg Prop Armor Cover (%) . | . . . Naked Turns . | . . . Heaviest Build 20 | 8 17 20 Greatest Support 20 | 20 20 20 Greatest Overweight (x) 1 | . 1 . Average Overweight (x) . | . . . Largest Inventory Capacity 1 | . 1 1 Average Capacity . | . . 1 Most Carried 1 | . 1 1 Average Carried . | . . . Final Capacity 1 | . 1 1 Final Carried 1 | . 1 1 Class Distribution -------------------- 73% | Skirmisher 26% | Mutant Dominant Class ---------------- Skirmisher | -10/Materials Skirmisher | -10/Mines Resources | -11 -10 -10 ----------- Run | Yrd Mat Min Matter Collected 506 | 280 225 1 Remotely . | . . . Salvage Created 817 | 183 619 15 Parts 47 | 12 33 2 Haulers Intercepted 1 | . 1 . Recyclers Shooed 2 | . 2 . Parts Field Recycled . | . . . Retrieved Matter . | . . . Parts Self-Destructed . | . . . Prevented . | . . . Parts Restored . | . . . Kills | -11 -10 -10 ------- Run | Yrd Mat Min Combat Hostiles Destroyed 11 | . 9 2 Guns 6 | . 4 2 Cannons 5 | . 5 . Classes Destroyed 8 | 3 4 1 Worker 4 | 2 2 . Tunneler 4 | 3 1 . Hauler 1 | . 1 . Recycler 4 | 1 3 . Watcher 3 | . 3 . Swarmer 5 | . 5 . Grunt 5 | . 4 1 Assembled 1 | . . 1 Best Kill Streak 6 | 4 6 1 Combat Bots Only 5 | . 5 1 Max Kills in Single Turn 1 | 1 1 1 Gunslinging . | . . . Exploded . | . . . Melee . | . . . Uniques/NPCs Destroyed . | . . . Combat | -11 -10 -10 -------- Run | Yrd Mat Min Hostile Shots Fired 139 | . 44 95 Missed 34 | . 14 20 Hits 105 | . 30 75 Melee 3 | . . 3 Projectile 102 | . 30 72 AOE 1 | . . 1 Critical Strikes 2 | . . 2 Part Disruptions 2 | . . 2 Damage Taken 1253 | . 312 941 Core 1003 | . 242 761 Absorbed by Shields 50 | . 8 42 Redirected to Core 805 | . 213 592 Ignored by Resistances 75 | . . 75 Core Remaining (%) 100 | 100 . . Volleys Fired 142 | 20 114 8 Largest 4 | 2 3 4 Hottest 224 | 60 168 224 Shots Fired 328 | 32 276 20 Gun 301 | 32 249 20 Cannon 27 | . 27 . Launcher . | . . . Special . | . . . Kinetic 47 | 20 27 . Thermal 281 | 12 249 20 Explosive . | . . . Electromagnetic . | . . . Robot Hit Streak 9 | 7 9 3 Robot Miss Streak 3 | 1 3 3 Penetration Max . | . . . Secondary Targets 1 | . . 1 Max Gunslinging Chain 1 | . . 1 Shots Hit Robots 82 | 21 51 10 Core Hits 40 | 10 23 7 Critical Kills . | . . . Critical Parts Destroyed . | . . . Critical Strikes 6 | . 4 2 Burn 5 | . 3 2 Blast 1 | . 1 . Melee Attacks . | . . . Impact . | . . . Slashing . | . . . Piercing . | . . . Sneak Attacks . | . . . Combat Hostiles . | . . . Follow-up Attacks . | . . . Damage Inflicted 1310 | 208 910 192 Guns 939 | 208 569 162 Cannons 250 | . 250 . Explosions 89 | . 89 . Melee . | . . . Ramming 32 | . 2 30 Kinetic 392 | 142 250 . Thermal 869 | 66 641 162 Explosive 17 | . 17 . Electromagnetic . | . . . Impact . | . . . Slashing . | . . . Piercing . | . . . Highest Corruption . | . . . Average Corruption . | . . . Corruption Purged . | . . . Corruption Blocked . | . . . Overload Shots . | . . . Overflow Damage . | . . . Projectiles . | . . . Explosions . | . . . Melee . | . . . Knockbacks 4 | . 4 . Impact . | . . . Kinetic 3 | . 3 . Secondary 1 | . 1 . Self-Inflicted Damage 31 | . 31 . Shots 1 | . 1 . Rammed . | . . . Targets Rammed 13 | . 1 12 Kicked 13 | . 1 12 Crushed . | . . . Highest Temperature 232 | 60 232 117 Average Temperature 55 | 33 60 44 Received Heat Transfer 466 | . 27 439 Siege Activations . | . . . Martial Activations . | . . . Shielding Activations . | . . . Robots Disrupted . | . . . Combat Hostiles . | . . . Robots Corrupted . | . . . Combat Hostiles . | . . . Parts Fried . | . . . Impact Corruptions . | . . . Robots Melted . | . . . Combat Hostiles . | . . . Parts Melted 4 | . 4 . Heat Transferred 2420 | 150 1715 555 Parts Sabotaged . | . . . Parts Stolen . | . . . Parts Stripped . | . . . Power Chain Reactions . | . . . Alert | -11 -10 -10 ------- Run | Yrd Mat Min Maximum Alert Level 1 | . 1 . Low Security (%) 78 | 100 75 100 Level 1 21 | . 24 . Level 2 . | . . . Level 3 . | . . . Level 4 . | . . . Level 5 . | . . . High Security . | . . . Max Security . | . . . Peak Influence 275 | 5 275 103 Initial 83 | . . 83 Average 108 | 1 119 92 Influence Increases 795 | 30 745 20 Destroy 0b10 Robot/C 200 | . 180 20 Destroy 0b10 Robot/NC 80 | 30 50 . Destroy Leader 58 | . 58 . Successful Hack 3 | . 3 . Disable Machine 345 | . 345 . Destroy Structure 109 | . 109 . Influence Decreases 722 | 30 530 162 Entered New Map 132 | . . 132 Time Decay 590 | 30 530 30 Squads Dispatched 3 | . 3 . Investigation 2 | . 2 . Extermination . | . . . Reinforcement 1 | . 1 . Assault . | . . . Garrison . | . . . Intercept . | . . . Searches Triggered . | . . . Construction Impeded . | . . . Haulers Reinforced . | . . . Active Scanning Responses . | . . . Cargo Convoy Interrupts . | . . . Stealth | -11 -10 -10 --------- Run | Yrd Mat Min Distress Signals . | . . . Communications Jammed . | . . . Distress Signals . | . . . Times Spotted 39 | . 16 23 Peak Tracking Total 21 | . 3 21 Tactical Retreats . | . . . Traps | -11 -10 -10 ------- Run | Yrd Mat Min Traps Triggered 5 | . 5 . Indirectly . | . . . Trap Hack Attempts . | . . . Triggered . | . . . Disarmed . | . . . Reprogrammed . | . . . Reused . | . . . Traps Extracted . | . . . Installed . | . . . Triggered . | . . . Machines | -11 -10 -10 ---------- Run | Yrd Mat Min Machines Disabled 23 | . 23 . Max in Single Turn 2 | . 2 . Machines Repaired . | . . . Machines Dismantled . | . . . Machines Sabotaged . | . . . Overloaded Fab Kills . | . . . Hacking | -11 -10 -10 --------- Run | Yrd Mat Min Machines Accessed 1 | . 1 . Terminals . | . . . Fabricators . | . . . Repair Stations . | . . . Recycling Units 1 | . 1 . Scanalyzers . | . . . Garrison Access . | . . . Total Hacks 2 | . 2 . Successful 2 | . 2 . Failed . | . . . Catastrophic . | . . . Database Lockouts . | . . . Manual 2 | . 2 . Terminals . | . . . Fabricators . | . . . Repair Stations . | . . . Recycling Units 2 | . 2 . Scanalyzers . | . . . Garrison Access . | . . . Terminal Hacks . | . . . Fabricator Hacks . | . . . Repair Station Hacks . | . . . Recycling Unit Hacks . | . . . Scanalyzer . | . . . Garrison Access Hacks . | . . . Unauthorized Hacks 2 | . 2 . Terminals . | . . . Fabricators . | . . . Repair Stations . | . . . Recycling Units 2 | . 2 . Reject 1 | . 1 . Recyclers 1 | . 1 . Scanalyzers . | . . . Garrison Access . | . . . Data Cores Recovered . | . . . Used . | . . . Hacking Detections 1 | . 1 . Full Trace Events . | . . . Feedback Events . | . . . Feedback Blocked . | . . . Robot Schematics Acquired . | . . . Robots Built . | . . . Authchips . | . . . Time . | . . . Total Robot Build Rating . | . . . Part Schematics Acquired . | . . . Parts Built . | . . . Authchips . | . . . Time . | . . . Total Part Build Rating . | . . . Part Studies Acquired . | . . . Parts Repaired . | . . . Time . | . . . Parts Recycled . | . . . Recycled Matter . | . . . Retrieved Matter . | . . . Retrieved Components . | . . . Parts Scanalyzed . | . . . Part Schematics Acquired . | . . . Parts Damaged . | . . . Bothacking | -11 -10 -10 ------------ Run | Yrd Mat Min Used RIF Installer . | . . . Robots Hacked . | . . . Non-combat . | . . . Combat . | . . . Robot Hacks Applied . | . . . Relay Couplers Released . | . . . Fabnet Peak Effective % . | . . . Robots Rewired . | . . . Allies Hacked . | . . . Hacks Repelled . | . . . Allies | -11 -10 -10 -------- Run | Yrd Mat Min Total Allies . | . . . Largest Group . | . . . Highest-Rated Group . | . . . Highest-Rated Ally . | . . . Total Orders . | . . . Ally Attacks . | . . . Total Damage . | . . . Kills . | . . . Allies Corrupted . | . . . Allies Melted . | . . . Intel | -11 -10 -10 ------- Run | Yrd Mat Min Active Infowar (turns) 1743 | 92 1591 60 Sensors 814 | . 814 . Terrain 1743 | 92 1591 60 Robot Analysis Total . | . . . Derelict Logs Recovered . | . . . Drone Launches . | . . . Drone Recoveries . | . . . Exploration | -11 -10 -10 ------------- Run | Yrd Mat Min Turns Passed 1804 | 153 1591 60 Spaces Moved 939 | 83 843 13 Core 5 | 5 . . Treads . | . . . Legs 934 | 78 843 13 Wheels . | . . . Hover . | . . . Flight . | . . . Fastest Speed 50 | 50 120 120 Average Speed 119 | 115 120 120 Slowest Speed 190 | 120 190 120 Overloaded Moves . | . . . Propulsion Burnouts . | . . . Robots Hopped . | . . . Potential Cave-ins . | . . . Cave-ins Triggered . | . . . Exploration Rate (%) 35 | 4 91 11 Regions Visited 2 Branch Regions 1 Pre-discovered Areas . | . . . Known Exits Taken . | . . . Unknown Exits Taken 2 | 1 1 . Scrap Searched . | . . . Spaces Dug . | . . . Terrain Destroyed 126 | . 126 . Melee . | . . . Projectile 2 | . 2 . AOE 124 | . 124 . Terrain Rammed . | . . . Walls Destroyed . | . . . Machines Disabled . | . . . Actions | -11 -10 -10 --------- Run | Yrd Mat Min Total 1327 | 109 1181 37 Wait 196 | 1 193 2 Move 937 | 82 842 13 Hop . | . . . Pick Up 1 | . 1 . Fast Attach 18 | 6 12 . Attach 1 | . . 1 Detach 1 | . . 1 Swap . | . . . Drop 7 | . 7 . Fire 142 | 20 114 8 Melee . | . . . Ram . | . . . Kick 13 | . 1 12 Crush . | . . . Escape Stasis . | . . . Rewire . | . . . Trap . | . . . Miscellaneous 11 | . 11 . Route ------- -11/Scrapyard -10/Materials (discovered 5 exits: [*Mat x3] / [*Min] / [Sub]) -10/Mines (discovered 1 exit: [Mat]) History --------- Turn | Location | Event 1 | -11/Scrapyard | Upgraded with Propulsion slot (x1) 1 | -11/Scrapyard | Upgraded with Utility slot (x1) 1 | -11/Scrapyard | Upgraded with Weapon slot (x1) 7 | -11/Scrapyard | Discovered new exit (range 15) 154 | -11/Scrapyard | Entered Materials 308 | -10/Materials | Build established: Mutant 350 | -10/Materials | Discovered new exit (range 16) 369 | -10/Materials | Discovered new exit (range 15) 425 | -10/Materials | Discovered new exit (range 15) 610 | -10/Materials | Discovered new exit (range 17) 796 | -10/Materials | Build established: Skirmisher 879 | -10/Materials | Reached level 2 882 | -10/Materials | Upgraded with Weapon slot (x1) 1265 | -10/Materials | Discovered new exit (range 14) 1745 | -10/Materials | Entered Mines 1746 | -10/Mines | Assembled infested the area 1747 | -10/Mines | Reached level 3 1748 | -10/Mines | Discovered new exit (range 13) 1751 | -10/Mines | Assisted by a Guerilla fighting off Assembled 1752 | -10/Mines | Upgraded with Weapon slot (x1) 1784 | -10/Mines | Core integrity fell below 50% 1792 | -10/Mines | Core integrity fell below 20% 1805 | -10/Mines | Destroyed by D-53 Grenadier with Mini Grenade Launcher Last Messages --------------- 01771_ Kicked as-40592. 01775_ as-29439 destroyed. 01784_ Kicked as-40592. 01785_ Kicked as-40592 out of the way. 01786_ Knocked back. 01787_ Kicked as-90501. 01788_ Core Extractor disabled. 01789_ Knocked back. 01789_ Critical hit (Burn: +80). 01789_ as-40592 destroyed. 01792_ Kicked as-96009 out of the way. 01793_ Kicked as-24315. 01795_ Kicked as-24315 out of the way. 01796_ Kicked as-24315. 01799_ Kicked as-24315 out of the way. 01803_ C-45 Heavy ARC bursts open, deploying its payload. 01803_ D-53 Grenadier unfolds itself. 01805_ as-05857 destroyed. 01805_ as-67928 destroyed. Map ----- +----------------------------------------------------+ | ??????????????????????????????????????????????? | | ??????????????????????????????????????????????? | | ??????????????????????????????????????????????? | | ??????????????????????????????????????????????? | | ??????????????????????????????????????????????? | | ??????????????????????????????????????????????? | | ??????????????????????????????????????????????? | | ???????????? ?? ? ? ?????????????????????????? | | ?????????? ? ?###?#??????????????????????? | | ???????####?##?? ??## ? ??????????????????? | | ??????######?##?? ###? #?#?? ???????????????? | | ??????#?#?####### ##?## ##??# ???????????????? | | ????####?#??########## #?? ???????????????? | | ?????##??#######???## ## ??#????????????? | | ???#####?##?##?###### ## ??##???????????? | | ??###?###?########?### ## #??#???????????? | | ??## ######??######### ?# #?#?#??????????? | | ? ? ####?###?####### ### #??##?#????????? | | ?? ? ? ?##########?#### ### ##?????????????? | | ?? ?? #####?####?### ## ##?????????????? | | ? ?? ############# r ####?#?????????? | | ???? ? ?### %% ## #????#????????? | | ? ? ### %%aaa??## ##?#?#?#??????? | | ?## ? ? ### " "%aa"a### u ## ##??????? | | ??##? ? ### ""% a % #??????? | | ??#? < #?# ""aa" a @d #??????? | | ??# ### a!% d #??????? | | ? ?? ?## = a < #??????? | | ??? ? ? #### %* #% #??????? | | ??? ? ?##?####### ## #?????? | | ??? #??####?##### # ## ??????? | | ???? ?#######?###?######## ??????? | | ?????######?############# ? ##### ??????? | | ?????###??####?#####?##?? ##????? ???????? | | ??? ??##?########?####?### ?####???#??????????? | | ?????????####??#?###########??##??#???????????? | | ???????#?###?######?##########????????????????? | | ????? ?#??###############??#???#??????????????? | | ????????????##?#?###?#??##?##????#????????????? | | ??????????#???#??##??##???#???##??????????????? | | ??????????#??????#???#????????????????????????? | | ???????????????#???#??#???#?#?????????????????? | | ????????????#???#?####????????????????????????? | | ??????????????????????????????????????????????? | | ??????????????????????????????????????????????? | | ??????????????????????????????????????????????? | | ??????????????????????????????????????????????? | | | | | | | +----------------------------------------------------+ Best States ------------- Heat Dissipation 43 Energy Generation 15 Energy Capacity 300 Matter Stores 300 Matter Capacity 300 Sight Range 17 Robot Scan Range 20 Terrain Scan Range 16 Terrain Scan Density 310 Resistance: KI 10 Evasion (%) 55 Item Schematics ----------------- None Robot Schematics ------------------ None Fabricated ------------ Nothing Repaired ---------- Nothing Studied --------- None Alien Tech Used ----------------- None Achievements -------------- None Challenges ------------ None RPGLIKE | -11 -10 -10 --------- Run | Yrd Mat Min Levels Raised 2 | . 1 1 XP Earned 6475 | 3000 2875 600 XP Spent 5960 | 2095 1560 2305 Upgrades 24 | 10 6 8 Propulsion Slot 1 | 1 . . Utility Slot 1 | 1 . . Weapon Slot 3 | 1 1 1 Core Integrity 3 | . . 3 Heat Dissipation 3 | . 3 . Energy Generation 1 | . 1 . Energy Storage 1 | . . 1 Inventory Capacity 1 | . 1 . Sight Range 1 | 1 . . Sensor Range 3 | 3 . . Terrain Scan Density 3 | 3 . . Ranged Accuracy 1 | . . 1 KI Resistance % 2 | . . 2 Protomatter Created 117 | . 71 46 Integrity Restored 240 | . 240 . Core 240 | . 240 . Protomatter Decayed . | . . . Game ------ Seed BombardmentGravmagScrap Manual? 0 Play Time 00:18:26 Cumulative 171.8 hours Start 2025.10.29 @ 14:49:20 End 2025.10.29 @ 15:05:19 Sessions 1 Manual Loads 0 Difficulty Rogue Special Mode Winter2019/RPGLIKE Game No. 140 Rogue 128 Adventurer 12 Explorer 0 Win Type - Total 2 Types 2/0/0/0/0/0/0/0/0/0 Lore% 53 Gallery% 56 Achievement% 37 Wizard Run 0 Options --------- Layout 2 ASCII 0 Keyboard 0 Movement Mouse Keybinds 0 Fullscreen 1 Font 24/Smallcaps Map View 50x44 Zoom Use 0% Tactical HUD 1 Map Filters NONE Filters NONE Steam 1 RUN: 42cbe233-765c-47f8-809f-e50c42cfa305